bitfinex/quotes_SOLUSD_20251030
["timestamp","ask_amount","ask_price","bid_price","bid_amount"]
[1761842372893,0.66,185.95,185.92,1.65999999]
[1761842373092,6.03805648,185.95,185.93,1.65999999]
[1761842374416,4.00935048,185.94,185.92,1.65999999]
[1761842374620,4.00935048,185.94,185.93,1.65999999]
[1761842374795,0.66,185.93,185.91,1.65999999]
[1761842374999,4.00935048,185.94,185.92,1.65999999]
[1761842375211,9.38748485,185.94,185.92,1.65999999]
[1761842375520,5.37813437,185.94,185.91,1.65999999]
[1761842375694,5.37813437,185.94,185.92,1.65999999]
[1761842375905,6.03784165,185.95,185.92,1.65999999]
[1761842376130,4.01011243,185.94,185.92,1.65999999]
[1761842376300,4.67011243,185.94,185.91,1.65999999]
[1761842376817,4.67011243,185.94,185.9,1.65999999]
[1761842377025,4.01011243,185.94,185.9,1.65999999]
[1761842377238,6.0383682,185.93,185.89,1.65999999]
[1761842377415,4.01011243,185.92,185.89,1.65999999]
[1761842377736,13.06169209,185.92,185.89,1.65999999]
[1761842377898,4.67011243,185.91,185.87,1.65999999]
[1761842378104,4.67011243,185.91,185.89,1.65999999]
[1761842378526,12.40169209,185.91,185.89,1.65999999]
[1761842378726,4.01011243,185.9,185.89,1.65999999]
[1761842379521,10.08934857,185.9,185.89,1.65999999]
[1761842380115,4.01011243,185.9,185.89,1.65999999]
[1761842380726,9.38879469,185.92,185.89,1.65999999]
[1761842380908,4.01011243,185.91,185.9,1.65999999]
[1761842381327,9.38918832,185.91,185.89,1.65999999]
[1761842381628,4.01011243,185.9,185.89,1.65999999]
[1761842382812,8.39157966,185.91,185.89,1.65999999]
[1761842383108,4.01567805,185.9,185.89,1.65999999]
[1761842383321,4.0160381,185.9,185.89,1.65999999]
[1761842384023,8.39157966,185.92,185.9,1.65999999]
[1761842384225,4.01598948,185.91,185.9,1.65999999]
[1761842384417,4.01598948,185.91,185.89,1.65999999]
[1761842385512,4.01598948,185.91,185.9,1.65999999]
[1761842385819,16.53834465,185.94,185.9,1.65999999]
[1761842385820,11.16,185.94,185.92,1.65999999]
[1761842386225,11.16,185.94,185.93,1.65999999]
[1761842386533,15.17574938,185.94,185.93,1.65999999]
[1761842386710,15.17574938,185.94,185.9,1.65999999]
[1761842386711,21.25382833,185.94,185.9,1.65999999]
[1761842386919,13.10732904,185.93,185.9,1.65999999]
[1761842387115,4.01574938,185.92,185.89,1.65999999]
[1761842387519,4.71574938,185.92,185.89,1.65999999]
[1761842387909,4.01574938,185.92,185.89,1.65999999]
[1761842388232,0.7,185.91,185.89,1.65999999]
[1761842388431,4.71574938,185.92,185.89,1.65999999]
[1761842388730,5.3789468,185.91,185.89,1.65999999]
[1761842390116,6.0789468,185.91,185.89,1.65999999]
[1761842390446,4.71692433,185.9,185.85,1.65999999]
[1761842390632,4.71692433,185.9,185.86,1.65999999]
[1761842390633,5.37952552,185.89,185.86,1.65999999]
[1761842390838,5.37952552,185.89,185.87,1.65999999]
[1761842391938,9.09157966,185.88,185.84,63.35999999]
[1761842392139,4.01724575,185.87,185.84,63.35999999]
[1761842392352,4.71724575,185.87,185.84,1.65999999]
[1761842392515,4.01724575,185.87,185.85,1.65999999]
[1761842392715,5.38039384,185.86,185.83,1.65999999]
[1761842393237,5.38017743,185.87,185.83,1.65999999]
[1761842393738,5.38017743,185.87,185.82,84.67199999]
[1761842394047,6.08017743,185.87,185.83,1.65999999]
[1761842394243,6.08017743,185.87,185.82,64.07999999]
[1761842394449,6.08017743,185.87,185.83,1.65999999]
[1761842395247,9.09157966,185.86,185.82,61.7]
[1761842395544,11.14,185.85,185.82,61.7]
[1761842395722,20.23157966,185.85,185.82,63.35999999]
[1761842395920,19.53157966,185.85,185.82,63.35999999]
[1761842396124,11.14,185.85,185.82,1.65999999]
[1761842396627,11.14,185.85,185.79,62.42]
[1761842396628,11.14,185.85,185.83,2.37999999]
[1761842396840,5.3801281,185.87,185.84,1.65999999]
[1761842396841,16.5201281,185.87,185.84,1.65999999]
[1761842399249,24.91170776,185.87,185.83,63.35999999]
[1761842399438,9.09157966,185.86,185.83,61.7]
[1761842400338,8.39157966,185.84,185.77,64.07999999]
[1761842400537,8.39157966,185.82,185.79,1.65999999]
[1761842401051,9.09157966,185.82,185.79,1.65999999]
[1761842401272,8.39157966,185.8,185.73,1.65999999]
[1761842401431,8.39157966,185.76,185.73,0.72]
[1761842401628,19.53157966,185.76,185.72,0.2]
[1761842402050,8.39157966,185.74,185.72,0.2]
[1761842402254,19.53157966,185.73,185.72,0.2]
[1761842402658,20.23157966,185.73,185.72,0.2]
[1761842403345,25.61573946,185.73,185.72,0.2]
[1761842403544,19.53157966,185.73,185.72,0.2]
[1761842403751,11.14,185.73,185.72,0.92]
[1761842403957,11.14,185.73,185.72,0.2]
[1761842404262,19.53157966,185.73,185.72,0.2]
[1761842404464,20.23157966,185.73,185.72,0.2]
[1761842404960,30.02040735,185.73,185.72,0.2]
[1761842405161,9.78882769,185.72,185.64,0.72]
[1761842405492,8.39157966,185.66,185.63,1.65999999]
[1761842405641,19.53157966,185.67,185.63,1.65999999]
[1761842405841,19.53157966,185.67,185.61,1.65999999]
[1761842405842,8.39157966,185.65,185.61,1.65999999]
[1761842406075,8.39157966,185.66,185.62,1.65999999]
[1761842406358,8.39157966,185.66,185.61,0.72]
[1761842406559,8.39157966,185.63,185.59,0.72]
[1761842406738,8.39157966,185.63,185.59,2.37999999]
[1761842406947,8.39157966,185.63,185.58,1.85999999]
[1761842407155,8.39157966,185.63,185.59,2.37999999]
[1761842407353,11.14,185.64,185.61,1.65999999]
[1761842407561,19.53157966,185.64,185.61,1.65999999]
[1761842407866,22.06808449,185.64,185.59,1.65999999]
[1761842408073,16.68117472,185.64,185.61,1.65999999]
[1761842408365,22.06807697,185.64,185.6,1.65999999]
[1761842408866,16.68117472,185.64,185.6,1.65999999]
[1761842409068,11.14,185.71,185.64,1.65999999]
[1761842409274,5.54117472,185.7,185.66,1.65999999]
[1761842409648,10.92633892,185.7,185.66,1.65999999]
[1761842409973,5.54117472,185.69,185.63,0.68]
[1761842410176,11.16,185.68,185.63,0.68]
[1761842410384,11.16,185.68,185.65,1.65999999]
[1761842410578,11.16,185.68,185.64,1.65999999]
[1761842410785,11.16,185.68,185.66,1.65999999]
[1761842410985,11.16,185.68,185.63,5.54117472]
[1761842411153,11.16,185.68,185.63,6.22117472]
[1761842411349,6.10589971,185.67,185.61,1.65999999]
[1761842411660,6.10589971,185.67,185.63,1.65999999]
[1761842411661,5.38589971,185.67,185.63,1.65999999]
[1761842411858,5.38589971,185.67,185.62,2.33999999]
[1761842412262,5.38589971,185.67,185.63,0.68]
[1761842412958,18.85064899,185.67,185.63,0.68]
[1761842413355,5.38589971,185.67,185.63,0.68]
[1761842413570,5.38589971,185.67,185.64,1.65999999]
[1761842413785,5.38589971,185.67,185.61,1.65999999]
[1761842413962,5.54117472,185.62,185.58,0.2]
[1761842414161,5.54117472,185.62,185.58,1.85999999]
[1761842414162,16.70117472,185.62,185.58,1.85999999]
[1761842414477,16.70117472,185.62,185.58,0.88]
[1761842414660,16.70117472,185.62,185.59,0.68]
[1761842414856,16.70117472,185.62,185.58,1.85999999]
[1761842415054,16.70117472,185.62,185.58,2.56999999]
[1761842415252,16.70117472,185.62,185.59,2.36999999]
[1761842415452,22.08866925,185.62,185.59,0.71]
[1761842415860,22.08866925,185.62,185.58,0.2]
[1761842416062,22.08866925,185.62,185.58,2.56999999]
[1761842416809,5.54117472,185.61,185.58,0.91]
[1761842417591,10.92889512,185.61,185.58,2.56999999]
[1761842418299,5.54117472,185.61,185.58,2.56999999]
[1761842418679,10.92884321,185.61,185.58,2.56999999]
[1761842418880,5.38766849,185.61,185.58,2.56999999]
[1761842419387,10.92884321,185.61,185.58,0.91]
[1761842419582,5.54117472,185.61,185.58,0.91]
[1761842419787,22.08857242,185.62,185.58,0.91]
[1761842419976,5.54117472,185.61,185.58,0.91]
[1761842420177,5.54117472,185.61,185.58,0.2]
[1761842420706,5.54117472,185.61,185.59,1.65999999]
[1761842421094,5.54117472,185.61,185.58,0.2]
[1761842421305,5.54117472,185.59,185.58,0.2]
[1761842421487,22.08939606,185.59,185.58,0.2]
[1761842421687,22.78939606,185.59,185.58,0.2]
[1761842421903,22.08939606,185.59,185.58,0.2]
[1761842423397,22.78939606,185.59,185.58,0.2]
[1761842425294,22.08939606,185.59,185.58,0.2]
[1761842426703,16.54822134,185.59,185.58,0.2]
[1761842426896,22.78939606,185.59,185.58,0.2]
[1761842427302,19.42608426,185.59,185.58,0.2]
[1761842427689,5.38822134,185.59,185.58,0.2]
[1761842427888,2.17786292,185.59,185.58,0.2]
[1761842428285,8.26608426,185.59,185.58,0.2]
[1761842428505,5.38880206,185.57,185.54,1.85999999]
[1761842428712,2.17786292,185.55,185.54,0.2]
[1761842429488,2.85786292,185.55,185.54,0.2]
[1761842429907,2.17786292,185.55,185.54,0.2]
[1761842430417,11.16,185.56,185.54,0.2]
[1761842430622,20.592,185.57,185.54,0.2]
[1761842430803,11.16,185.56,185.54,0.2]
[1761842431116,2.17786292,185.55,185.54,0.2]
[1761842432800,7.56724583,185.55,185.54,0.2]
[1761842434720,8.24724583,185.55,185.54,0.2]
[1761842434912,11.16,185.55,185.54,2.56999999]
[1761842435918,11.16,185.55,185.54,1.85999999]
[1761842436221,11.16,185.55,185.54,2.56999999]
[1761842436605,11.16,185.56,185.54,2.56999999]
[1761842436815,11.16,185.56,185.55,0.71]
[1761842437518,11.16,185.56,185.54,1.85999999]
[1761842437713,2.17786292,185.55,185.54,0.2]
[1761842438415,2.17786292,185.55,185.54,1.85999999]
[1761842438806,7.56724583,185.55,185.54,1.85999999]
[1761842439709,2.17786292,185.55,185.54,1.85999999]
[1761842439895,2.17786292,185.57,185.55,1.65999999]
[1761842440096,11.16,185.57,185.56,1.65999999]
[1761842440309,7.56609407,185.59,185.56,2.33999999]
[1761842440514,11.16,185.58,185.57,0.68]
[1761842440713,4.99425204,185.63,185.58,1.65999999]
[1761842440920,13.33786292,185.62,185.58,1.65999999]
[1761842441193,13.33786292,185.62,185.6,1.65999999]
[1761842441709,2.85786292,185.61,185.55,1.65999999]
[1761842441900,2.17786292,185.58,185.55,1.65999999]
[1761842442101,13.33786292,185.58,185.56,1.65999999]
[1761842442409,11.16,185.58,185.57,1.65999999]
[1761842442807,11.16,185.58,185.56,1.65999999]
[1761842442999,11.16,185.58,185.57,1.65999999]
[1761842443691,16.5485157,185.58,185.56,1.65999999]
[1761842443891,11.16,185.58,185.55,2.33999999]
[1761842444413,11.16,185.58,185.57,1.65999999]
[1761842445216,16.54856353,185.58,185.55,2.33999999]
[1761842445418,16.54856353,185.58,185.56,1.65999999]
[1761842446506,11.16,185.58,185.57,1.65999999]
[1761842447511,16.54853545,185.58,185.55,1.65999999]
[1761842447701,16.54853545,185.58,185.57,1.65999999]
[1761842448297,20.56547224,185.58,185.57,1.65999999]
[1761842448918,16.54853545,185.58,185.57,1.65999999]
[1761842449317,20.56946313,185.58,185.57,1.65999999]
[1761842450813,22.74732605,185.58,185.57,1.65999999]
[1761842451022,23.42732605,185.58,185.54,1.85999999]
[1761842451208,2.17786292,185.57,185.54,1.85999999]
[1761842451403,2.17786292,185.57,185.55,1.65999999]
[1761842452208,16.54853545,185.58,185.54,0.2]
[1761842452209,2.17786292,185.56,185.54,0.2]
[1761842452411,2.17786292,185.57,185.55,1.65999999]
[1761842453333,16.54909247,185.56,185.55,1.65999999]
[1761842454421,11.16,185.56,185.55,1.65999999]
[1761842454729,11.16,185.56,185.55,2.33999999]
[1761842458332,11.16,185.58,185.57,1.65999999]
[1761842458942,11.16,185.58,185.57,2.33999999]
[1761842459144,11.16,185.58,185.57,1.65999999]
[1761842459346,13.33786292,185.58,185.55,2.33999999]
[1761842459514,13.33786292,185.58,185.55,1.65999999]
[1761842459720,18.72663553,185.58,185.55,1.65999999]
[1761842459933,18.72663553,185.58,185.55,2.33999999]
[1761842460134,13.33786292,185.58,185.56,0.68]
[1761842460329,11.16,185.58,185.57,1.65999999]
[1761842460529,15.1938385,185.58,185.57,1.65999999]
[1761842460732,11.16,185.58,185.57,2.33999999]
[1761842461039,18.72643195,185.58,185.55,2.33999999]
[1761842461243,2.17786292,185.57,185.55,1.65999999]
[1761842461442,2.17786292,185.57,185.54,0.2]
[1761842461443,2.17786292,185.56,185.54,0.2]
[1761842461648,11.16,185.55,185.54,0.2]
[1761842461826,18.72724583,185.55,185.54,0.2]
[1761842462953,23.44295344,185.55,185.54,0.2]
[1761842464043,27.07394865,185.55,185.54,0.2]
[1761842464551,36.86277634,185.55,185.54,0.2]
[1761842464758,9.78882769,185.54,185.47,2.33999999]
[1761842465054,2.17786292,185.5,185.49,1.65999999]
[1761842465230,13.33786292,185.5,185.49,1.65999999]
[1761842466127,11.16,185.5,185.49,2.33999999]
[1761842467933,11.16,185.5,185.49,1.65999999]
[1761842468251,18.72869849,185.5,185.49,1.65999999]
[1761842469441,19.9558973,185.5,185.49,1.65999999]
[1761842469840,20.6358973,185.5,185.47,1.65999999]
[1761842470153,3.40506173,185.48,185.47,1.65999999]
[1761842470330,4.08506173,185.48,185.47,1.65999999]
[1761842471231,4.08506173,185.48,185.44,0.2]
[1761842471453,3.40506173,185.45,185.44,0.2]
[1761842471731,3.40506173,185.45,185.44,1.85999999]
[1761842471927,8.79735075,185.45,185.44,0.2]
[1761842472744,9.47735075,185.45,185.44,0.2]
[1761842473631,8.79735075,185.45,185.44,0.2]
[1761842474657,9.47735075,185.45,185.44,0.2]
[1761842474878,13.50537313,185.45,185.44,0.2]
[1761842475229,63.7364605,185.45,185.37,1.65999999]
[1761842475449,20.592,185.42,185.37,1.65999999]
[1761842475642,20.592,185.42,185.37,2.32999999]
[1761842475643,3.40506173,185.39,185.37,2.32999999]
[1761842475856,3.40506173,185.42,185.4,1.65999999]
[1761842476229,16.55291405,185.43,185.4,1.65999999]
[1761842476230,3.40506173,185.41,185.4,1.65999999]
[1761842476427,3.40506173,185.41,185.38,0.67]
[1761842476428,3.40506173,185.41,185.38,1.65999999]
[1761842476663,3.40506173,185.39,185.36,1.75999999]
[1761842476960,3.40506173,185.37,185.36,2.42999999]
[1761842477152,14.56506173,185.37,185.36,2.42999999]
[1761842477456,14.56506173,185.37,185.36,0.77]
[1761842477639,14.56506173,185.37,185.36,1.75999999]
[1761842478371,19.9596779,185.37,185.36,0.1]
[1761842480160,30.42850559,185.37,185.36,0.1]
[1761842480359,19.9596779,185.37,185.36,0.1]
[1761842480653,11.16,185.37,185.36,0.1]
[1761842480859,14.56506173,185.37,185.36,0.1]
[1761842481054,19.9596779,185.37,185.36,0.1]
[1761842481438,20.6396779,185.37,185.36,0.1]
[1761842483658,19.9596779,185.37,185.36,0.1]
[1761842484161,11.16,185.37,185.36,0.1]
[1761842484349,14.56506173,185.37,185.36,0.77]
[1761842484546,3.40506173,185.39,185.36,0.77]
[1761842484865,11.16,185.38,185.36,2.42999999]
[1761842485235,3.40506173,185.41,185.38,1.65999999]
[1761842485544,11.16,185.41,185.4,1.65999999]
[1761842485753,11.16,185.41,185.39,1.65999999]
[1761842486264,11.16,185.41,185.4,2.32999999]
[1761842486443,11.16,185.41,185.4,0.67]
[1761842486646,3.40506173,185.45,185.41,1.65999999]
[1761842486958,11.16,185.44,185.42,1.65999999]
[1761842487160,9.78882769,185.52,185.43,1.65999999]
[1761842487338,3.40506173,185.46,185.43,1.65999999]
[1761842487544,14.56506173,185.46,185.43,1.65999999]
[1761842487744,14.56506173,185.46,185.44,1.65999999]
[1761842488058,14.56506173,185.46,185.39,22.28410335]
[1761842488059,3.40506173,185.45,185.43,1.65999999]
[1761842488445,8.79746643,185.45,185.42,1.65999999]
[1761842488858,3.40506173,185.43,185.38,1.65999999]
[1761842489061,3.40506173,185.39,185.36,0.1]
[1761842489365,3.40506173,185.37,185.36,0.1]
[1761842489544,4.08506173,185.37,185.36,0.1]
[1761842489746,3.40506173,185.37,185.36,0.1]
[1761842490242,8.7996779,185.37,185.36,0.1]
[1761842491450,19.26850559,185.37,185.36,1e-08]
[1761842491648,19.26850559,185.37,185.35,1e-08]
[1761842491851,35.83706173,185.36,185.35,1e-08]
[1761842492450,41.23196893,185.36,185.35,1e-08]
[1761842492645,41.23196893,185.36,185.31,0.1]
[1761842492646,30.38082769,185.32,185.31,0.1]
[1761842492847,48.35095115,185.32,185.31,0.1]
[1761842493047,49.03095115,185.32,185.31,0.1]
[1761842493372,49.03095115,185.32,185.31,1e-08]
[1761842493548,49.03095115,185.32,185.29,0.2]
[1761842493865,13.19388942,185.3,185.29,0.2]
[1761842494252,9.78882769,185.29,185.23,1.75999999]
[1761842494460,8.8034638,185.24,185.23,1.75999999]
[1761842494674,19.9634638,185.24,185.23,1.75999999]
[1761842495263,16.55840207,185.24,185.23,1.75999999]
[1761842495591,19.61796486,185.24,185.23,1.75999999]
[1761842495877,19.61796486,185.24,185.23,2.42999999]
[1761842496176,19.61796486,185.25,185.24,1.65999999]
[1761842496743,11.16,185.25,185.24,2.32999999]
[1761842497047,19.61796486,185.25,185.24,2.32999999]
[1761842497360,19.61796486,185.27,185.26,1.65999999]
[1761842497670,9.78882769,185.26,185.23,1.75999999]
[1761842497847,8.45796486,185.24,185.23,1.75999999]
[1761842498051,19.61796486,185.24,185.23,1.75999999]
[1761842498256,19.61796486,185.24,185.23,2.42999999]
[1761842498659,11.16,185.24,185.23,2.42999999]
[1761842498864,11.16,185.24,185.23,0.1]
[1761842498865,25.01636693,185.24,185.23,0.1]
[1761842499064,35.48519462,185.24,185.23,1.75999999]
[1761842499359,35.48519462,185.24,185.23,0.1]
[1761842500179,24.32519462,185.24,185.23,0.1]
[1761842500482,35.48519462,185.24,185.23,0.1]
[1761842500691,25.69636693,185.24,185.23,0.1]
[1761842501161,25.69636693,185.24,185.21,0.1]
[1761842501162,20.592,185.22,185.21,0.1]
[1761842501366,18.24679255,185.22,185.21,0.1]
[1761842501565,18.90679255,185.22,185.21,0.1]
[1761842501774,49.99879255,185.22,185.21,0.1]
[1761842501981,42.20082769,185.22,185.21,0.1]
[1761842502201,50.65879255,185.22,185.21,0.1]
[1761842502364,49.99879255,185.22,185.21,0.1]
[1761842502559,56.05777754,185.22,185.21,0.1]
[1761842504090,46.26894985,185.22,185.21,0.1]
[1761842504492,55.39777754,185.22,185.21,0.1]
[1761842504692,56.05777754,185.22,185.21,0.1]
[1761842506086,55.39777754,185.22,185.21,0.1]
[1761842506284,56.05777754,185.22,185.21,0.1]
[1761842507797,55.39777754,185.22,185.21,0.1]
[1761842507992,56.05777754,185.22,185.21,0.1]
[1761842508291,55.39777754,185.22,185.21,0.1]
[1761842510781,46.93981268,185.22,185.21,0.76]
[1761842511097,19.61796486,185.22,185.21,0.76]
[1761842511493,25.01694985,185.22,185.21,0.76]
[1761842511694,19.61796486,185.22,185.21,0.76]
[1761842512309,25.01694985,185.22,185.21,0.76]
[1761842512671,16.55898499,185.22,185.21,0.76]
[1761842512872,25.01694985,185.22,185.21,0.76]
[1761842513090,0.66,185.36,185.24,1.65999999]
[1761842513282,13.32327303,185.35,185.26,1.65999999]
[1761842513483,13.85562563,185.27,185.26,1.65999999]
[1761842513799,11.16,185.27,185.26,1.65999999]
[1761842514171,11.16,185.27,185.26,2.31999999]
[1761842514587,5.39716685,185.29,185.26,2.31999999]
[1761842514784,11.16,185.29,185.27,2.31999999]
[1761842514977,11.16,185.29,185.28,1.65999999]
[1761842515297,11.16,185.29,185.28,2.31999999]
[1761842515677,11.16,185.29,185.28,1.65999999]
[1761842515678,25.01491018,185.29,185.28,1.65999999]
[1761842516392,25.01491018,185.29,185.27,1.65999999]
[1761842516588,8.45796486,185.28,185.27,1.65999999]
[1761842516993,2.82088926,185.35,185.28,1.65999999]
[1761842517194,11.16,185.34,185.32,1.65999999]
[1761842517417,8.45796486,185.35,185.33,0.66]
[1761842517700,11.16,185.34,185.32,1.65999999]
[1761842518126,25.0134618,185.34,185.32,2.31999999]
[1761842518507,8.45796486,185.37,185.33,2.31999999]
[1761842518801,19.61796486,185.36,185.34,2.31999999]
[1761842519001,8.45796486,185.35,185.34,2.31999999]
[1761842519391,8.45796486,185.35,185.33,1.65999999]
[1761842519584,8.45796486,185.34,185.33,2.31999999]
[1761842519805,13.85345423,185.34,185.3,1.65999999]
[1761842519987,13.85345423,185.34,185.27,0.66]
[1761842519988,11.16,185.33,185.31,1.65999999]
[1761842520496,11.16,185.34,185.33,1.65999999]
[1761842520681,11.16,185.34,185.33,2.31999999]
[1761842520877,11.16,185.34,185.33,1.65999999]
[1761842521082,11.16,185.34,185.33,2.31999999]
[1761842521283,19.61796486,185.34,185.33,2.31999999]
[1761842521477,19.61796486,185.34,185.32,1.65999999]
[1761842521678,8.45796486,185.33,185.32,1.65999999]
[1761842521895,19.61796486,185.34,185.33,0.66]
[1761842522409,19.61796486,185.34,185.32,1.65999999]
[1761842522600,19.61796486,185.34,185.32,2.31999999]
[1761842522996,19.61796486,185.34,185.33,2.31999999]
[1761842523196,11.16,185.34,185.33,2.31999999]
[1761842524006,8.45796486,185.38,185.36,1.65999999]
[1761842524209,20.27796486,185.37,185.33,1.65999999]
[1761842524409,20.27796486,185.37,185.32,1.65999999]
[1761842524410,8.45796486,185.34,185.32,1.65999999]
[1761842524614,8.45796486,185.34,185.3,1.65999999]
[1761842524615,8.45796486,185.33,185.3,1.65999999]
[1761842524916,8.45796486,185.31,185.3,1.65999999]
[1761842525113,11.16,185.31,185.27,1.65999999]
[1761842525291,11.16,185.31,185.3,0.66]
[1761842525492,11.16,185.31,185.27,1.65999999]
[1761842525493,19.61796486,185.31,185.27,1.65999999]
[1761842525801,8.45796486,185.28,185.27,1.65999999]
[1761842525994,8.45796486,185.28,185.27,2.31999999]
[1761842526196,11.16,185.31,185.29,1.65999999]
[1761842526389,19.61796486,185.31,185.3,1.65999999]
[1761842526792,8.45796486,185.32,185.3,2.31999999]
[1761842527010,8.45796486,185.32,185.31,0.66]
[1761842527235,8.45796486,185.34,185.33,1.65999999]
[1761842527988,19.61796486,185.35,185.33,2.31999999]
[1761842528204,8.45796486,185.34,185.33,1.65999999]
[1761842529015,8.45796486,185.34,185.32,1.65999999]
[1761842529228,8.45796486,185.33,185.3,1.65999999]
[1761842529391,30.72324325,185.35,185.3,1.65999999]
[1761842529392,8.45796486,185.31,185.3,1.65999999]
[1761842529590,11.16,185.31,185.29,1.65999999]
[1761842529828,8.45796486,185.3,185.29,1.65999999]
[1761842530012,13.85461893,185.3,185.29,1.65999999]
[1761842530216,13.85461893,185.3,185.27,1.65999999]
[1761842530426,8.45796486,185.28,185.27,1.65999999]
[1761842530728,19.61796486,185.28,185.27,1.65999999]
[1761842530925,11.16,185.28,185.27,1.65999999]
[1761842531225,8.45796486,185.3,185.28,1.65999999]
[1761842531430,5.5612489,185.29,185.28,1.65999999]
[1761842532110,9.78882769,185.29,185.25,1.65999999]
[1761842532310,5.5612489,185.26,185.23,1.65999999]
[1761842532511,5.5612489,185.24,185.23,2.31999999]
[1761842533335,5.5612489,185.24,185.23,1.65999999]
[1761842534044,10.95965097,185.24,185.21,0.1]
[1761842534326,5.5612489,185.22,185.21,0.1]
[1761842534497,16.7212489,185.22,185.21,0.1]
[1761842534908,16.7212489,185.22,185.21,1.75999999]
[1761842535811,16.7212489,185.22,185.21,0.1]
[1761842536014,31.90906158,185.22,185.21,0.1]
[1761842536225,16.55898499,185.22,185.21,0.77]
[1761842536535,22.12023389,185.22,185.21,0.1]
[1761842536829,22.12023389,185.22,185.21,0.77]
[1761842537034,11.16,185.22,185.21,0.77]
[1761842537536,16.55898499,185.22,185.21,2.42999999]
[1761842539427,11.16,185.22,185.21,2.42999999]
[1761842541300,16.55898499,185.22,185.21,2.42999999]
[1761842541926,11.16,185.22,185.21,2.42999999]
[1761842544134,12.64468528,185.27,185.23,1.65999999]
[1761842544311,16.55781928,185.26,185.23,1.65999999]
[1761842544512,17.22781928,185.26,185.23,1.65999999]
[1761842544711,6.06781928,185.26,185.23,1.65999999]
[1761842544921,9.0120647,185.27,185.25,1.65999999]
[1761842545123,11.16,185.26,185.25,1.65999999]
[1761842545329,13.34585759,185.26,185.25,1.65999999]
[1761842545642,18.74367687,185.26,185.25,1.65999999]
[1761842545812,2.18585759,185.3,185.25,2.32999999]
[1761842546014,3.61436599,185.31,185.3,1.65999999]
[1761842546238,11.16,185.31,185.3,2.32999999]
[1761842548215,11.16,185.31,185.3,1.65999999]
[1761842549213,11.16,185.31,185.3,2.32999999]
[1761842549727,10.95423065,185.36,185.34,1.65999999]
[1761842550051,16.71914883,185.35,185.33,1.65999999]
[1761842550826,16.71914883,185.35,185.34,1.65999999]
[1761842551038,17.38914883,185.35,185.34,1.65999999]
[1761842551417,22.1143471,185.35,185.34,1.65999999]
[1761842551618,11.16,185.35,185.34,2.32999999]
[1761842551833,11.16,185.35,185.34,7.72548936]
[1761842552048,11.16,185.37,185.34,2.32999999]
[1761842552349,22.65692725,185.41,185.32,5.55914883]
[1761842552350,11.16,185.38,185.37,1.65999999]
[1761842552561,16.71914883,185.39,185.37,1.65999999]
[1761842552734,11.16,185.39,185.37,1.65999999]
[1761842552931,16.71914883,185.39,185.37,1.65999999]
[1761842553154,9.78882769,185.37,185.32,1.65999999]
[1761842553355,5.55914883,185.33,185.32,1.65999999]
[1761842553659,22.13492932,185.33,185.32,1.65999999]
[1761842554068,22.13492932,185.33,185.29,0.67]
[1761842554069,36.29438056,185.33,185.28,1.65999999]
[1761842554232,36.29438056,185.33,185.26,0.67]
[1761842554233,5.55914883,185.3,185.26,1.65999999]
[1761842554432,11.16,185.29,185.28,1.65999999]
[1761842554956,11.16,185.29,185.28,2.32999999]
[1761842555691,5.39601605,185.33,185.31,1.65999999]
[1761842555839,5.39539652,185.35,185.32,1.65999999]
[1761842556158,11.16,185.33,185.32,1.65999999]
[1761842556537,11.16,185.33,185.32,2.32999999]
[1761842556931,11.16,185.33,185.32,1.65999999]
[1761842558062,11.16,185.33,185.32,2.32999999]
[1761842558236,11.16,185.33,185.32,1.65999999]
[1761842558640,11.16,185.33,185.32,2.32999999]
[1761842559142,11.16,185.33,185.32,1.65999999]
[1761842559340,11.16,185.33,185.32,2.32999999]
[1761842559546,11.16,185.33,185.32,1.65999999]
[1761842559866,16.55578049,185.33,185.32,1.65999999]
[1761842560864,11.16,185.33,185.32,2.32999999]
[1761842561945,16.55578049,185.33,185.32,1.65999999]
[1761842562364,22.11492932,185.33,185.32,1.65999999]
[1761842562542,22.11492932,185.33,185.25,20.592]
[1761842562543,22.78492932,185.33,185.31,1.65999999]
[1761842562870,5.55914883,185.32,185.31,1.65999999]
[1761842564254,10.95522048,185.32,185.31,1.65999999]
[1761842564450,10.95522048,185.32,185.3,1.65999999]
[1761842564666,5.39607165,185.32,185.31,1.65999999]